[Event "Gaprindashvili Cup Women III Stage 2020"]
[Site "Online"]
[Date "2020.11.12"]
[Round "3.3"]
[White "Javakhishvili, Lela"]
[Black "Khukhashvili, Sopiko"]
[Result "0-1"]
[ECO "E14"]
[WhiteElo "2473"]
[BlackElo "2334"]
[Annotator "ChessBase"]
[PlyCount "54"]
[EventDate "2020.11.04"]
[EventType "k.o."]
[SourceTitle "playchess.com"]
[Source "ChessBase"]
[SourceQuality "1"]
[TimeControl "1500+5"]

1. d4 {[%emt 0:20:02]} Nf6 {[%emt 0:20:04]} 2. c4 {[%emt 0:00:04]} e6 {[%emt 0:00:03]} 3. Nf3 {[%emt 0:00:03]} Bb4+ {[%emt 0:00:04]} 4. Nbd2 {[%emt 0:00:04]} b6 {[%emt 0:00:03]} 5. a3 {[%emt 0:00:04]} Bxd2+ {[%emt 0:00:04]} 6. Qxd2 {[%emt 0:00:03]} Bb7 {[%emt 0:00:04]} 7. e3 {[%emt 0:00:03]} O-O {[%emt 0:00:06]} 8. Be2 {[%emt 0:00:03]} d6 {[%emt 0:00:04]} 9. O-O {[%emt 0:00:06]} Nbd7 {[%emt 0:00:05]} 10. b4 {[%emt 0:00:04]} Qe7 {[%emt 0:00:10]} 11. Bb2 {[%emt 0:00:07]} Ne4 {[%emt 0:00:03]} 12. Qc2 {[%emt 0:00:05]} f5 {[%emt 0:00:04]} 13. Rad1 {[%emt 0:00:55]} Rf6 {[%emt 0:00:06]} 14. d5 {[%emt 0:00:05]} Rg6 {[%emt 0:00:28]} 15. g3 {[%emt 0:00:14]} e5 {[%emt 0:00:11]} 16. Bd3 {[%emt 0:00:15]} Rf8 {[%emt 0:00:16]} 17. Ne1 {[%emt 0:00:26]} Qh4 {[%emt 0:00:14]} 18. Ng2 {[%emt 0:00:09]} Qh3 {[%emt 0:00:04]} 19. f3 {[%emt 0:00:17]} Nxg3 {[%emt 0:00:15]} 20. hxg3 {[%emt 0:00:05]} Rxg3 {[%emt 0:00:06]} 21. Rfe1 {[%emt 0:00:39]} Rf6 {[%emt 0:00:09]} 22. Bf1 {[%emt 0:00:03]} Rxf3 {[%emt 0:00:10]} 23. Be2 {[%emt 0:00:28]} Rg3 {[%emt 0:00:11]} 24. Bf1 {[%emt 0:00:06]} Rfg6 {[%emt 0:00:23]} 25. e4 {[%emt 0:00:22]} f4 {[%emt 0:00:08]} 26. Rd3 {[%emt 0:00:04]} f3 {[%emt 0:00:05]} 27. Ree3 {[%emt 0:00:12]} fxg2 {[%emt 0:00:14]} 0-1

[Event "Gaprindashvili Cup Women III Stage 2020"]
[Site "Online"]
[Date "2020.11.12"]
[Round "3.4"]
[White "Khukhashvili, Sopiko"]
[Black "Javakhishvili, Lela"]
[Result "1-0"]
[ECO "B06"]
[WhiteElo "2334"]
[BlackElo "2473"]
[Annotator "ChessBase"]
[PlyCount "107"]
[EventDate "2020.11.04"]
[EventType "k.o."]
[SourceTitle "playchess.com"]
[Source "ChessBase"]
[SourceQuality "1"]
[TimeControl "1500+5"]

1. e4 {[%emt 0:20:02]} d6 {[%emt 0:20:05]} 2. d4 {[%emt 0:00:05]} g6 {[%emt 0:00:04]} 3. Nc3 {[%emt 0:00:04]} Bg7 {[%emt 0:00:03]} 4. Be3 {[%emt 0:00:07]} c6 {[%emt 0:00:06]} 5. a4 {[%emt 0:00:04]} Nd7 {[%emt 0:00:05]} 6. Qd2 {[%emt 0:00:10]} Qc7 {[%emt 0:00:30]} 7. h4 {[%emt 0:00:24]} Ngf6 {[%emt 0:00:34]} 8. f3 {[%emt 0:00:05]} e5 {[%emt 0:00:10]} 9. Nge2 {[%emt 0:00:05]} h5 {[%emt 0:00:08]} 10. O-O-O {[%emt 0:00:12]} Nb6 {[%emt 0:00:15]} 11. b3 {[%emt 0:00:05]} Nbd7 {[%emt 0:00:39]} 12. dxe5 {[%emt 0:00:15]} dxe5 {[%emt 0:00:03]} 13. Kb2 {[%emt 0:00:20]} Bf8 {[%emt 0:00:25]} 14. Bg5 {[%emt 0:00:23]} Be7 {[%emt 0:00:06]} 15. f4 {[%emt 0:00:12]} Nc5 {[%emt 0:00:18]} 16. Qe3 {[%emt 0:00:22]} Ng4 {[%emt 0:00:08]} 17. Qf3 {[%emt 0:00:20]} f6 {[%emt 0:00:03]} 18. f5 {[%emt 0:00:46]} fxg5 {[%emt 0:00:04]} 19. hxg5 {[%emt 0:00:07]} Bxg5 {[%emt 0:00:16]} 20. Ng3 {[%emt 0:00:12]} Bd7 {[%emt 0:00:11]} 21. Qxg4 {[%emt 0:00:08]} hxg4 {[%emt 0:00:10]} 22. Rxh8+ {[%emt 0:00:03]} Kf7 {[%emt 0:00:07]} 23. Rxa8 {[%emt 0:00:12]} Bc8 {[%emt 0:00:05]} 24. fxg6+ {[%emt 0:00:07]} Kxg6 {[%emt 0:00:05]} 25. Nf5 {[%emt 0:00:09]} a6 {[%emt 0:00:24]} 26. Nd6 {[%emt 0:00:13]} Be6 {[%emt 0:00:04]} 27. Bc4 {[%emt 0:00:15]} Bxc4 {[%emt 0:00:13]} 28. Nxc4 {[%emt 0:00:04]} Kg7 {[%emt 0:00:11]} 29. a5 {[%emt 0:00:07]} Ne6 {[%emt 0:00:06]} 30. Re8 {[%emt 0:00:11]} Nd4 {[%emt 0:00:08]} 31. Rxe5 {[%emt 0:00:11]} Bf6 {[%emt 0:00:04]} 32. Rh5 {[%emt 0:00:09]} Kg6 {[%emt 0:00:09]} 33. Rdh1 {[%emt 0:00:08]} Qg3 {[%emt 0:00:25]} 34. Rh6+ {[%emt 0:00:10]} Kf7 {[%emt 0:00:04]} 35. e5 {[%emt 0:00:13]} Bg7 {[%emt 0:00:04]} 36. R6h5 {[%emt 0:00:17]} Qxg2 {[%emt 0:00:12]} 37. R1h2 {[%emt 0:00:05]} Qg1 {[%emt 0:00:19]} 38. Ne4 {[%emt 0:00:10]} g3 {[%emt 0:00:10]} 39. Ncd6+ {[%emt 0:00:13]} Ke6 {[%emt 0:00:15]} 40. R2h3 {[%emt 0:00:27]} Ne2 {[%emt 0:00:10]} 41. Rg5 {[%emt 0:00:13]} Qc1+ {[%emt 0:00:07]} 42. Ka2 {[%emt 0:00:04]} Qxc2+ {[%emt 0:00:05]} 43. Ka3 {[%emt 0:00:04]} Qc1+ {[%emt 0:00:07]} 44. Kb4 {[%emt 0:00:06]} Qe1+ {[%emt 0:00:11]} 45. Kc5 {[%emt 0:00:04]} Qc1+ {[%emt 0:00:09]} 46. Kb6 {[%emt 0:00:06]} Bxe5 {[%emt 0:00:05]} 47. Rh6+ {[%emt 0:00:06]} Kd5 {[%emt 0:00:04]} 48. Nc4 {[%emt 0:00:08]} Kxe4 {[%emt 0:00:10]} 49. Rxe5+ {[%emt 0:00:04]} Kf3 {[%emt 0:00:05]} 50. Rf6+ {[%emt 0:00:04]} Kg2 {[%emt 0:00:04]} 51. Rxe2+ {[%emt 0:00:04]} Kg1 {[%emt 0:00:07]} 52. Ne3 {[%emt 0:00:06]} g2 {[%emt 0:00:18]} 53. Rxg2+ {[%emt 0:00:03]} Kh1 {[%emt 0:00:03]} 54. Rh6# {[%emt 0:00:04]} 1-0

[Event "Gaprindashvili Cup Women III Stage 2020"]
[Site "Online"]
[Date "2020.11.12"]
[Round "4.2"]
[White "Khukhashvili, Sopiko"]
[Black "Arabidze, Meri"]
[Result "0-1"]
[ECO "B44"]
[WhiteElo "2334"]
[BlackElo "2437"]
[Annotator "RC"]
[PlyCount "58"]
[EventDate "2020.11.04"]
[EventType "k.o."]
[SourceTitle "playchess.com"]
[Source "ChessBase"]
[SourceQuality "1"]
[TimeControl "1500+5"]

1. e4 {[%emt 0:00:00]} c5 {[%emt 0:00:04]} 2. Nf3 {[%emt 0:00:02]} e6 {[%emt 0:00:03]} 3. d4 {[%emt 0:00:02]} cxd4 {[%emt 0:00:02]} 4. Nxd4 {[%emt 0:00:02]} Nc6 {[%emt 0:00:01]} 5. c4 {[%emt 0:00:08]} Bc5 {[%emt 0:00:26]} 6. Nb3 {[%emt 0:00:13]} Be7 {[%emt 0:00:24]} 7. Nc3 {[%emt 0:00:04]} Nf6 {[%emt 0:00:19]} 8. Be2 {[%emt 0:00:09]} d6 {[%emt 0:00:12]} 9. Be3 {[%emt 0:00:12]} b6 {[%emt 0:00:24]} 10. Qd2 {[%emt 0:00:24]} Bb7 {[%emt 0:00:10]} 11. Rd1 {[%emt 0:00:04]} O-O {[%emt 0:00:42]} 12. g4 {[%emt 0:00:36]} Ne5 {[%emt 0:01:10]} 13. f3 {[%emt 0:00:22]} Rc8 {[%emt 0:01:24]} 14. g5 {[%emt 0:01:26]} Ne8 {[%emt 0:00:35]} 15. Qd4 {[%emt 0:02:28]} Bxg5 {[%emt 0:00:30]} 16. f4 {[%emt 0:00:12]} Bh4+ {[%emt 0:00:08]} 17. Kf1 {[%emt 0:00:03]} Ng6 {[%emt 0:00:32]} 18. Rg1 {[%emt 0:00:11]} e5 {[%emt 0:02:26]} 19. fxe5 {[%emt 0:00:25]} Nxe5 {[%emt 0:00:02]} 20. Kg2 {[%emt 0:00:15]} f5 {[%emt 0:00:30]} 21. Nd5 {[%emt 0:00:09]} Bf6 {[%emt 0:03:15]} 22. exf5 {[%emt 0:00:24]} Nxc4 {[%emt 0:00:42]} 23. Qe4 {[%emt 0:00:17]} Nxe3+ {[%emt 0:00:24]} 24. Qxe3 {[%emt 0:00:02]} Nc7 {[%emt 0:00:34]} 25. Bf3 {[%emt 0:00:16]} Nxd5 {[%emt 0:00:09]} 26. Bxd5+ {[%emt 0:00:08]} Bxd5+ {[%emt 0:00:01]} 27. Rxd5 {[%emt 0:00:02]} Be5 {[%emt 0:00:36]} 28. Nd4 {[%emt 0:00:18]} Qh4 {[%emt 0:00:47]} 29. h3 {[%emt 0:00:56]} Rc4 {[%emt 0:01:32]} 0-1